fUST/lending_fUST_20250626
["ID","MTS","AMOUNT","RATE_DAILY","PERIOD"]
[367737727,1750911038107,-917.40057482,0.00016662,2]
[367737733,1750911038159,-117.46224014,0.00016662,2]
[367737735,1750911038169,-3863.0,0.000167,2]
[367737737,1750911038179,-203.9287656,0.00016701,2]
[367737739,1750911038188,-460.0,0.00016935,2]
[367737741,1750911038198,-181.26,0.00016935,2]
[367737743,1750911038207,-532.55,0.00016935,2]
[367737745,1750911038217,-460.0,0.00016935,2]
[367737747,1750911038227,-360.77032562,0.0001699,2]
[367737749,1750911038237,-460.0,0.00017209,2]
[367737751,1750911038247,-460.0,0.00017209,2]
[367737754,1750911038256,-460.0,0.00017483,2]
[367737756,1750911038265,-460.0,0.00017483,2]
[367737757,1750911038275,-500.0,0.00017537,2]
[367737759,1750911038284,-460.88431684,0.00017537,2]
[367737761,1750911038294,-460.0,0.00017537,2]
[367737763,1750911038303,-435.22755519,0.00017537,2]
[367737766,1750911038314,-462.87197347,0.00017537,2]
[367737768,1750911038323,-464.3696369,0.00017537,2]
[367737770,1750911038332,-460.0,0.00017537,2]
[367737771,1750911038341,-460.0,0.00017537,2]
[367737774,1750911038351,-460.0,0.00017757,2]
[367737775,1750911038364,-460.0,0.00017757,2]
[367737777,1750911038373,-236.42876265,0.00017791,2]
[367737780,1750911038382,-460.0,0.0001781,2]
[367737782,1750911038392,-460.0,0.0001781,2]
[367737784,1750911038401,-453.29888166,0.0001781,2]
[367737786,1750911038411,-460.0,0.0001781,2]
[367737787,1750911038420,-467.48081983,0.0001781,2]
[367737789,1750911038429,-460.0,0.0001781,2]
[367737791,1750911038439,-460.0,0.0001781,2]
[367737794,1750911038452,-210.19701061,0.0001781,2]
[367737796,1750911038461,-460.0,0.0001781,2]
[367737798,1750911038470,-461.68036514,0.0001781,2]
[367737800,1750911038480,-462.81349475,0.0001781,2]
[367737802,1750911038490,-460.0,0.00017811,2]
[367737804,1750911038499,-460.0,0.00017811,2]
[367737806,1750911038509,-460.0,0.00017811,2]
[367737808,1750911038519,-460.0,0.00017811,2]
[367737810,1750911038528,-460.0,0.00017811,2]
[367737812,1750911038538,-460.0,0.00017811,2]
[367737814,1750911038548,-233.01349873,0.000179,2]
[367737816,1750911038558,-160.0,0.00018015,2]
[367737818,1750911038568,-425.22527846,0.00018015,2]
[367737820,1750911038578,-160.0,0.00018015,2]
[367737822,1750911038593,-846.92323443,0.00018015,2]
[367737824,1750911038603,-213.72380786,0.00018015,2]
[367737826,1750911038612,-7148.5472187,0.00018015,2]
[367737887,1750911040421,-5411.62785919,0.00018015,2]
[367737889,1750911040431,-160.0,0.00018015,2]
[367737891,1750911040441,-836.92866116,0.00018015,2]
[367737893,1750911040451,-160.0,0.00018015,2]
[367737895,1750911040461,-160.0,0.00018015,2]
[367737897,1750911040470,-230.24506774,0.00018015,2]
[367737899,1750911040479,-160.0,0.00018015,2]
[367737901,1750911040489,-460.0,0.00018031,2]
[367737903,1750911040499,-460.0,0.00018031,2]
[367737905,1750911040508,-460.0,0.00018085,2]
[367737907,1750911040518,-333.91,0.00018085,2]
[367737909,1750911040527,-460.0,0.00018085,2]
[367737911,1750911040537,-257.45519121,0.00018085,2]
[367737913,1750911040546,-460.0,0.00018085,2]
[367737915,1750911040556,-460.0,0.00018085,2]
[367737917,1750911040566,-460.0,0.00018085,2]
[367737919,1750911040576,-500.0,0.00018099,2]
[367737921,1750911040586,-500.0,0.00018139,2]
[367737923,1750911040595,-233.01349867,0.00018176,2]
[367737925,1750911040604,-460.0,0.00018305,2]
[367737927,1750911040613,-496.4,0.00018305,2]
[367737929,1750911040623,-580.06,0.00018359,2]
[367737931,1750911040632,-460.0,0.00018359,2]
[367737933,1750911040642,-460.0,0.00018359,2]
[367737935,1750911040651,-460.0,0.00018359,2]
[367737937,1750911040662,-500.0,0.00018363,2]
[367737939,1750911040671,-233.01349867,0.00018452,2]
[367737942,1750911040683,-460.0,0.00018579,2]
[367737944,1750911040692,-605.58,0.00018633,2]
[367737946,1750911040701,-460.0,0.00018633,2]
[367737948,1750911040711,-460.0,0.00018633,2]
[367737950,1750911040720,-233.01349867,0.00018728,2]
[367737952,1750911040730,-460.0,0.00018853,2]
[367737954,1750911040741,-460.0,0.00018907,2]
[367737956,1750911040751,-460.0,0.00018907,2]
[367737958,1750911040761,-1000.0,0.0001891,2]
[367737960,1750911040770,-236.42876265,0.00018981,2]
[367737962,1750911040780,-233.01349867,0.00019003,2]
[367737964,1750911040790,-500.0,0.00019068,2]
[367737966,1750911040799,-325.43722864,0.00019068,2]
[367737968,1750911040809,-207.4,0.00019068,2]
[367737970,1750911040818,-500.0,0.00019068,2]
[367737972,1750911040827,-500.0,0.00019068,2]
[367737974,1750911040836,-500.0,0.00019068,2]
[367737976,1750911040845,-2833.29677891,0.00019068,2]
[367737978,1750911040855,-500.0,0.00019068,2]
[367737980,1750911040864,-500.0,0.00019068,2]
[367737982,1750911040874,-500.0,0.00019068,2]
[367737984,1750911040883,-500.0,0.00019068,2]
[367737986,1750911040892,-500.0,0.00019068,2]
[367737988,1750911040902,-500.0,0.00019068,2]
[367737990,1750911040911,-500.0,0.00019068,2]
[367737992,1750911040921,-500.0,0.00019068,2]
[367737994,1750911040930,-500.0,0.00019068,2]
[367737996,1750911040940,-500.0,0.00019068,2]
[367737998,1750911040952,-500.0,0.00019068,2]
[367738000,1750911040961,-500.0,0.00019068,2]
[367738002,1750911040971,-500.0,0.00019068,2]
[367738004,1750911040980,-500.0,0.00019068,2]
[367738006,1750911040992,-500.0,0.00019068,2]
[367738008,1750911041001,-500.0,0.00019068,2]
[367738010,1750911041010,-500.0,0.00019068,2]
[367738013,1750911041020,-500.0,0.00019068,2]
[367738015,1750911041030,-500.0,0.00019068,2]
[367738017,1750911041039,-500.0,0.00019068,2]
[367738018,1750911041049,-460.0,0.00019127,2]
[367738020,1750911041058,-251.354434,0.00019178,2]
[367738023,1750911041067,-460.0,0.00019181,2]
[367738025,1750911041077,-460.0,0.00019181,2]
[367738027,1750911041086,-233.01349867,0.00019279,2]
[367738029,1750911041096,-351.47489142,0.00019401,2]
[367738031,1750911041105,-460.0,0.00019455,2]
[367738032,1750911041114,-460.0,0.00019455,2]
[367738033,1750911041124,-1000.0,0.00019458,2]
[367738034,1750911041133,-233.01349867,0.00019555,2]
[367738036,1750911041142,-185.786,0.00019723,2]
[367738038,1750911041151,-460.0,0.00019729,2]
[367738040,1750911041161,-460.0,0.00019729,2]
[367738042,1750911041170,-233.01349867,0.00019831,2]
[367738044,1750911041179,-966.0,0.00019952,2]
[367738046,1750911041188,-654.0,0.00019952,2]
[367738048,1750911041197,-2161.0,0.00019952,2]
[367738050,1750911041206,-460.0,0.00020003,2]
[367738052,1750911041216,-460.0,0.00020003,2]
[367738054,1750911041225,-233.01349867,0.00020107,2]
[367738056,1750911041234,-236.42876265,0.00020171,2]
[367738058,1750911041244,-180.0190657,0.00020233,2]
[367738060,1750911041254,-161.0779784,0.00020233,2]
[367738062,1750911041263,-581.8746126,0.00020233,2]
[367738064,1750911041272,-177.4156324,0.00020233,2]
[367738066,1750911041282,-177.4156324,0.00020233,2]
[367738068,1750911041291,-460.0,0.00020277,2]
[367738070,1750911041301,-460.0,0.00020277,2]
[367738072,1750911041310,-233.01349867,0.00020383,3]
[367738074,1750911041320,-215.0738,0.00020437,2]
[367738076,1750911041329,-500.0,0.00020547,14]
[367738078,1750911041339,-460.0,0.00020551,2]
[367738080,1750911041348,-460.0,0.00020551,2]
[367738082,1750911041357,-987.462459,0.0002058,4]
[367738084,1750911041370,-233.01349867,0.00020659,3]
[367738086,1750911041379,-460.0,0.00020825,2]
[367738088,1750911041388,-460.0,0.00020825,2]
[367738090,1750911041397,-1235.58783333,0.000209,2]
[367738092,1750911041408,-233.01349867,0.00020934,4]
[367738094,1750911041417,-168.0,0.00020941,2]
[367738096,1750911041426,-1260.0,0.00020957,2]
[367738098,1750911041436,-500.0,0.00020958,15]
[367738100,1750911041445,-213.72380786,0.0002098,10]
[367738102,1750911041456,-524.25751634,0.0002098,10]
[367738104,1750911041465,-32727.34554404,0.00021,2]
[367738282,1750911043129,-4085.17632308,0.00021,2]
[367738294,1750911043235,-2362.41,0.00021,2]
[367738573,1750911046108,-406.0,0.00019553,2]
[367738575,1750911046118,-258506.07063608,0.00021,2]
[367738580,1750911046159,-1456.33233316,0.00021,2]
[367739021,1750911050467,436.179448,0.00013699,2]
[367739907,1750911874184,5000.0,0.000161,2]
[367739908,1750911921466,2555.3321217,0.000161,2]
[367739909,1750911921496,2444.6678783,0.000161,2]
[367739970,1750912232357,-620.54907195,0.00016335,2]
[367739971,1750912232367,-172.6730985,0.00016615,2]
[367739972,1750912232377,-300.0,0.0001666,2]
[367739973,1750912232386,-460.0,0.00016661,2]
[367739974,1750912232396,-460.0,0.00016661,2]
[367739975,1750912232406,-460.0,0.00016661,2]
[367739976,1750912232415,-202.10826298,0.00016661,2]
[367739977,1750912232427,-460.0,0.00016935,2]
[367739978,1750912232436,-460.0,0.00016935,2]
[367739979,1750912232446,-157.6191751,0.00017094,2]
[367739980,1750912232455,-355.26366281,0.00017103,2]
[367739981,1750912232465,-460.0,0.00017103,2]
[367739982,1750912232474,-283.19745156,0.00017104,2]
[367740024,1750912238238,-1575.02321406,0.00017104,2]
[367740031,1750912238293,-1056.37985105,0.00017104,2]
[367740034,1750912238304,-5171.81020467,0.00017104,2]
[367740041,1750912238349,-16813.58927866,0.00017104,2]
[367740043,1750912238359,-500.0,0.00017194,2]
[367740045,1750912238368,-350.9,0.00017209,2]
[367740047,1750912238378,-460.0,0.00017209,2]
[367740049,1750912238388,-460.0,0.00017483,2]
[367740051,1750912238397,-351.13120991,0.00017537,2]
[367740053,1750912238407,-304.5491968,0.00017757,2]
[367740055,1750912238417,-460.0,0.0001781,2]
[367740057,1750912238426,-460.0,0.0001781,2]
[367740059,1750912238436,-209.71214886,0.000179,2]
[367740061,1750912238445,-160.0,0.00018051,2]
[367740062,1750912238454,-500.0,0.00018099,2]
[367740080,1750912238609,-420.0,0.00018203,2]
[367740083,1750912238627,-209.7121488,0.00018321,2]
[367740085,1750912238636,-500.0,0.00018375,2]
[367740087,1750912238646,-157.6191751,0.0001866,2]
[367740089,1750912238655,-209.7121488,0.00018742,2]
[367740091,1750912238665,-836.92866116,0.00018755,2]
[367740093,1750912238674,-12560.17507789,0.00018763,2]
[367740095,1750912238683,-160.0,0.00018763,2]
[367740097,1750912238693,-160.0,0.00018763,2]
[367740099,1750912238702,-160.0,0.00018763,2]
[367740101,1750912238711,-230.24506774,0.00018763,2]
[367740103,1750912238721,-160.0,0.00018763,2]
[367740105,1750912238730,-160.0,0.00018763,2]
[367740107,1750912238739,-213.72380786,0.00018763,2]
[367740109,1750912238749,-846.92323443,0.00018763,2]
[367740111,1750912238759,-425.22527846,0.00018763,2]
[367740113,1750912238768,-460.0,0.00018851,2]
[367740115,1750912238778,-460.0,0.00018851,2]
[367740117,1750912238787,-460.0,0.00018851,2]
[367740119,1750912238797,-222.58,0.00018851,2]
[367740121,1750912238806,-460.0,0.00018851,2]
[367740123,1750912238815,-458.29505541,0.00018851,2]
[367740125,1750912238825,-340.53734078,0.00018851,2]
[367740127,1750912238834,-460.0,0.00018851,2]
[367740129,1750912238843,-460.0,0.00018851,2]
[367740131,1750912238852,-605.05,0.00018851,2]
[367740133,1750912238867,-460.0,0.00018851,2]
[367740135,1750912238876,-3749.99,0.00018867,2]
[367740137,1750912238885,-524.24754194,0.00018867,2]
[367740139,1750912238894,-460.0,0.00018867,2]
[367740141,1750912238903,-321.49057706,0.00018867,2]
[367740143,1750912238913,-460.0,0.00018867,2]
[367740145,1750912238922,-394.04909701,0.00018883,2]
[367740147,1750912238931,-356.1288141,0.00018883,2]
[367740149,1750912238941,-823.72522222,0.000189,2]
[367740151,1750912238950,-760.08289179,0.00018923,2]
[367740153,1750912238961,-500.0,0.00019052,2]
[367740155,1750912238970,-500.0,0.00019068,2]
[367740157,1750912238979,-500.0,0.00019068,2]
[367740159,1750912238988,-500.0,0.00019068,2]
[367740161,1750912238998,-500.0,0.00019068,2]
[367740163,1750912239007,-500.0,0.00019068,2]
[367740165,1750912239018,-500.0,0.00019068,2]
[367740167,1750912239027,-500.0,0.00019068,2]
[367740169,1750912239037,-500.0,0.00019068,2]
[367740171,1750912239046,-500.0,0.00019068,2]
[367740173,1750912239055,-500.0,0.00019068,2]
[367740175,1750912239064,-500.0,0.00019068,2]
[367740177,1750912239074,-207.4,0.00019068,2]
[367740179,1750912239083,-500.0,0.00019068,2]
[367740181,1750912239093,-500.0,0.00019068,2]
[367740183,1750912239102,-500.0,0.00019068,2]
[367740185,1750912239111,-500.0,0.00019068,2]
[367740187,1750912239120,-500.0,0.00019068,2]
[367740189,1750912239130,-500.0,0.00019068,2]
[367740191,1750912239139,-500.0,0.00019068,2]
[367740193,1750912239148,-3749.99,0.00019141,2]
[367740195,1750912239157,-460.0,0.00019141,2]
[367740197,1750912239167,-460.0,0.00019141,2]
[367740199,1750912239176,-209.7121488,0.00019163,2]
[367740201,1750912239184,-201.083547,0.00019178,2]
[367740203,1750912239194,-3749.99,0.00019415,2]
[367740205,1750912239203,-173.69102479,0.00019415,2]
[367740207,1750912239212,-460.0,0.00019415,2]
[367740209,1750912239223,-209.7121488,0.00019584,2]
[367740211,1750912239233,-3749.99,0.00019689,2]
[367740213,1750912239242,-460.0,0.00019689,2]
[367740215,1750912239252,-185.786,0.00019724,2]
[367740217,1750912239261,-654.0,0.00019852,2]
[367740219,1750912239271,-2161.0,0.00019852,2]
[367740221,1750912239280,-406.0,0.00019852,2]
[367740223,1750912239289,-406.0,0.00019852,2]
[367740225,1750912239299,-587.0,0.00019888,2]
[367740227,1750912239308,-50196.15612,0.00019899,2]
[367740229,1750912239317,-158.97496957,0.00019899,2]
[367740231,1750912239326,-491.29615237,0.00019899,2]
[367740233,1750912239335,-500.0,0.00019899,2]
[367740235,1750912239344,-500.0,0.00019899,2]
[367740237,1750912239353,-608.80520252,0.00019899,2]
[367740239,1750912239363,-500.0,0.00019899,2]
[367740241,1750912239372,-500.0,0.00019899,2]
[367740243,1750912239382,-500.0,0.00019899,2]
[367740245,1750912239391,-500.0,0.00019899,2]
[367740247,1750912239401,-500.0,0.00019899,2]
[367740249,1750912239411,-500.0,0.00019899,2]
[367740251,1750912239420,-500.0,0.00019899,2]
[367740253,1750912239429,-500.0,0.00019899,2]
[367740255,1750912239439,-500.0,0.00019899,2]
[367740257,1750912239449,-500.0,0.00019899,2]
[367740259,1750912239458,-500.0,0.00019899,2]
[367740261,1750912239468,-500.0,0.00019899,2]
[367740263,1750912239477,-500.0,0.00019899,2]
[367740265,1750912239486,-500.0,0.00019899,2]
[367740267,1750912239496,-500.0,0.00019899,2]
[367740269,1750912239505,-500.0,0.00019899,2]
[367740271,1750912239515,-500.0,0.00019899,2]
[367740273,1750912239525,-474.71604172,0.00019899,2]
[367740275,1750912239534,-500.0,0.00019899,2]
[367740277,1750912239544,-28986.5928871,0.000199,2]
[367740279,1750912239553,-3636.30530976,0.000199,2]
[367740281,1750912239562,-648170.93388639,0.000199,7]
[367740283,1750912239575,-624.20491612,0.000199,7]
[367740285,1750912239586,-2394.60558874,0.000199,7]
[367740666,1750912243443,-1774.685808,0.000199,7]
[367740667,1750912243456,-676.49551176,0.000199,7]
[367740668,1750912243468,-15866.62281083,0.000199,7]
[367740669,1750912243480,-2250.50978165,0.000199,7]
[367740670,1750912243495,-481.18118197,0.000199,7]
[367740675,1750912243551,-25167.9645,0.000199,7]
[367740678,1750912243563,-594.61232,0.000199,7]
[367740965,1750912246318,-500.0,0.00019899,2]
[367740967,1750912246329,-500.0,0.00019899,2]
[367740969,1750912246339,-500.0,0.00019899,2]
[367740971,1750912246349,-500.0,0.00019899,2]
[367740973,1750912246358,-500.0,0.00019899,2]
[367740975,1750912246368,-500.0,0.00019899,2]
[367740977,1750912246378,-500.0,0.00019899,2]
[367740980,1750912246391,-500.0,0.00019899,2]
[367740982,1750912246400,-200.0,0.00019899,2]
[367740984,1750912246410,-3518.31223734,0.000199,7]
[367740986,1750912246422,-3691.45867788,0.000199,7]
[367740988,1750912246435,-702.06664328,0.000199,7]
[367743845,1750912700349,414.370475,0.00013699,2]
[367743958,1750913440750,-300.0,0.00016992,2]
[367743960,1750913440759,-460.0,0.00016993,2]
[367743962,1750913440769,-460.0,0.00016993,2]
[367743964,1750913440778,-460.0,0.00016993,2]
[367743966,1750913440787,-460.0,0.00016993,2]
[367743968,1750913440797,-24900.0,0.00016993,2]
[367743971,1750913440806,-157.6191751,0.00017097,2]
[367743973,1750913440815,-246.93854173,0.00017103,2]
[367743975,1750913440825,-502.88666483,0.00017103,2]
[367743977,1750913440834,-460.0,0.00017103,2]
[367743979,1750913440843,-3124.99,0.00017103,2]
[367743981,1750913440852,-460.0,0.00017103,2]
[367743983,1750913440862,-500.0,0.00017197,2]
[367743985,1750913440871,-460.0,0.00017267,2]
[367743987,1750913440880,-460.0,0.00017267,2]
[367743989,1750913440889,-460.0,0.00017267,2]
[367743991,1750913440898,-460.0,0.00017267,2]
[367743993,1750913440908,-460.0,0.00017377,2]
[367743995,1750913440917,-3124.99,0.00017377,2]
[367743998,1750913440926,-460.0,0.00017541,2]
[367744000,1750913440935,-460.0,0.00017541,2]
[367744002,1750913440945,-460.0,0.00017541,2]
[367744004,1750913440954,-460.0,0.00017651,2]
[367744006,1750913440963,-3124.99,0.00017651,2]
[367744008,1750913440972,-411.20731304,0.000179,2]
[367744010,1750913440981,-3124.99,0.00017925,2]
[367744012,1750913440990,-460.0,0.0001805,2]
[367744014,1750913440999,-479.57387598,0.0001805,2]
[367744016,1750913441009,-460.0,0.0001805,2]
[367744018,1750913441018,-460.0,0.0001805,2]
[367744020,1750913441027,-460.0,0.0001805,2]
[367744022,1750913441036,-460.0,0.0001805,2]
[367744024,1750913441045,-460.0,0.0001805,2]
[367744026,1750913441055,-460.0,0.0001805,2]
[367744028,1750913441063,-460.0,0.0001805,2]
[367744030,1750913441073,-160.0,0.00018084,2]
[367744032,1750913441082,-12560.17507789,0.00018084,2]
[367744034,1750913441091,-160.0,0.00018084,2]
[367744036,1750913441100,-230.24506774,0.00018084,2]
[367744038,1750913441109,-160.0,0.00018084,2]
[367744040,1750913441118,-160.0,0.00018084,2]
[367744042,1750913441127,-213.72380786,0.00018084,2]
[367744044,1750913441136,-846.92323443,0.00018084,2]
[367744046,1750913441145,-425.22527846,0.00018084,2]
[367744048,1750913441154,-836.92866116,0.00018084,2]
[367744050,1750913441163,-500.0,0.00018102,2]
[367744052,1750913441173,-411.20731291,0.00018176,2]
[367744054,1750913441182,-3124.99,0.00018199,2]
[367744056,1750913441192,-460.0,0.00018324,2]
[367744058,1750913441201,-460.0,0.00018324,2]
[367744060,1750913441211,-460.0,0.00018324,2]
[367744062,1750913441220,-460.0,0.00018324,2]
[367744064,1750913441229,-460.0,0.00018324,2]
[367744066,1750913441238,-460.0,0.00018324,2]
[367744068,1750913441249,-460.0,0.00018324,2]
[367744070,1750913441258,-460.0,0.00018324,2]
[367744072,1750913441267,-411.20731291,0.00018452,2]
[367744074,1750913441277,-3124.99,0.00018473,2]
[367744076,1750913441286,-420.0,0.0001856,2]
[367744078,1750913441295,-460.0,0.00018598,2]
[367744080,1750913441305,-460.0,0.00018598,2]
[367744082,1750913441314,-460.0,0.00018598,2]
[367744084,1750913441324,-460.0,0.00018598,2]
[367744086,1750913441333,-152.3,0.00018598,2]
[367744088,1750913441343,-289.3,0.00018598,2]
[367744090,1750913441352,-411.20731291,0.00018728,2]
[367744092,1750913441361,-3124.99,0.00018747,2]
[367744094,1750913441371,-460.0,0.00018872,2]
[367744096,1750913441381,-460.0,0.00018872,2]
[367744098,1750913441390,-460.0,0.00018872,2]
[367744100,1750913441399,-460.0,0.00018872,2]
[367744102,1750913441408,-427.20519392,0.00018883,2]
[367744104,1750913441418,-549.15014815,0.000189,2]
[367744106,1750913441427,-452.24,0.00019,2]
[367744108,1750913441436,-411.20731291,0.00019003,2]
[367744110,1750913441445,-3066.15799598,0.00019021,2]
[367744113,1750913441457,-58.83200402,0.00019021,2]
[367744115,1750913441466,-500.0,0.00019054,2]
[367744117,1750913441475,-207.4,0.00019068,2]
[367744119,1750913441484,-313.83697562,0.00019068,2]
[367744305,1750913443454,-186.16302438,0.00019068,2]
[367744307,1750913443463,-500.0,0.00019068,2]
[367744309,1750913443472,-500.0,0.00019068,2]
[367744311,1750913443481,-500.0,0.00019068,2]
[367744313,1750913443490,-500.0,0.00019068,2]
[367744315,1750913443499,-500.0,0.00019068,2]
[367744317,1750913443508,-500.0,0.00019068,2]
[367744319,1750913443517,-500.0,0.00019068,2]
[367744321,1750913443525,-500.0,0.00019068,2]
[367744323,1750913443534,-259.08084038,0.00019068,2]
[367744325,1750913443545,-240.91915962,0.00019068,2]
[367744327,1750913443554,-500.0,0.00019068,2]
[367744329,1750913443563,-500.0,0.00019068,2]
[367744331,1750913443573,-500.0,0.00019068,2]
[367744333,1750913443582,-500.0,0.00019068,2]
[367744335,1750913443591,-500.0,0.00019068,2]
[367744337,1750913443600,-500.0,0.00019068,2]
[367744339,1750913443609,-500.0,0.00019068,2]
[367744341,1750913443618,-500.0,0.00019068,2]
[367744343,1750913443630,-460.0,0.00019146,2]
[367744345,1750913443639,-460.0,0.00019146,2]
[367744347,1750913443648,-460.0,0.00019146,2]
[367744349,1750913443657,-460.0,0.00019146,2]
[367744350,1750913443666,-160.866837,0.00019178,2]
[367744352,1750913443675,-411.20731291,0.00019279,2]
[367744354,1750913443684,-1828.39587844,0.00019295,2]
[367744357,1750913443697,-1296.59412156,0.00019295,2]
[367744359,1750913443707,-460.0,0.0001942,2]
[367744361,1750913443717,-460.0,0.0001942,2]
[367744363,1750913443726,-460.0,0.0001942,2]
[367744365,1750913443735,-460.0,0.0001942,2]
[367744367,1750913443745,-411.20731291,0.00019555,2]
[367744369,1750913443754,-3124.99,0.00019569,2]
[367744371,1750913443764,-966.0,0.00019645,2]
[367744373,1750913443773,-654.0,0.00019645,2]
[367744375,1750913443783,-2161.0,0.00019645,2]
[367744377,1750913443792,-150.141,0.00019645,2]
[367744379,1750913443802,-460.0,0.00019694,2]
[367744381,1750913443811,-460.0,0.00019694,2]
[367744383,1750913443820,-460.0,0.00019694,2]
[367744385,1750913443831,-595.38,0.00019694,2]
[367744386,1750913443841,-157.6191751,0.00019696,2]
[367744388,1750913443850,-185.786,0.00019773,2]
[367744390,1750913443859,-20948.82441399,0.000198,2]
[367744662,1750913446430,-460.0,0.00016993,2]
[367744669,1750913446485,-15718.53121507,0.000198,2]
[367744671,1750913446495,-411.20731291,0.00019831,2]
[367744673,1750913446504,-3124.99,0.00019843,2]
[367744675,1750913446514,-233807.21386205,0.000199,7]
[367744677,1750913446524,-846.92323443,0.000199,7]
[367744679,1750913446533,-213.72380786,0.000199,7]
[367744681,1750913446542,-12560.17507789,0.000199,7]
[367744683,1750913446552,-425.48,0.00019968,2]
[367744685,1750913446562,-460.0,0.00019968,2]
[367744687,1750913446571,-160.0,0.0002,7]
[367744689,1750913446581,-250.0,0.00020001,2]
[367744691,1750913446590,-500.0,0.00020007,2]
[367744693,1750913446600,-411.20731291,0.00020107,2]
[367744695,1750913446609,-3124.99,0.00020117,2]
[367744697,1750913446618,-414.370475,0.00020187,2]
[367744699,1750913446632,-460.0,0.00020242,2]
[367744701,1750913446642,-587.0,0.00020271,2]
[367744703,1750913446651,-411.20731291,0.00020383,3]
[367744705,1750913446660,-3124.99,0.00020391,2]
[367744707,1750913446670,-215.0738,0.00020437,2]
[367744709,1750913446680,-460.0,0.00020516,2]
[367744711,1750913446689,-500.0,0.00020547,14]
[367744713,1750913446699,-846.396394,0.0002058,4]
[367744715,1750913446709,-411.20731291,0.00020659,3]
[367744717,1750913446718,-3124.99,0.00020665,2]
[367744719,1750913446727,-168.0,0.0002069,2]
[367744721,1750913446736,-460.0,0.0002079,2]
[367744723,1750913446746,-230.0,0.00020815,2]
[367744725,1750913446755,-411.20731291,0.00020934,4]
[367744727,1750913446765,-3124.99,0.00020939,2]
[367744729,1750913446774,-500.0,0.00020958,15]
[367744731,1750913446784,-178241.58231029,0.00021,2]
[367746832,1750913715029,372.933427,0.00013699,2]
[367746839,1750914309125,1300.0,0.00023,30]
[367746840,1750914402203,2000.0,0.00023,120]
[367746913,1750914638668,-210.0,0.00016697,2]
[367746914,1750914638678,-300.0,0.00016697,2]
[367746916,1750914638688,-1155.0,0.00016697,2]
[367746918,1750914638698,-471.46199658,0.00016698,2]
[367746919,1750914638708,-469.59830234,0.00016698,2]
[367746920,1750914638718,-435.02,0.00016698,2]
[367746922,1750914638727,-460.0,0.00016698,2]
[367746923,1750914638737,-460.0,0.00016698,2]
[367746925,1750914638747,-24900.0,0.00016698,2]
[367746927,1750914638756,-460.0,0.00016992,2]
[367746929,1750914638766,-461.98865213,0.00016992,2]
[367746932,1750914638775,-460.0,0.00016992,2]
[367746934,1750914638785,-172.15480861,0.00016992,2]
[367746936,1750914638795,-460.0,0.00016992,2]
[367746938,1750914638804,-460.0,0.00016992,2]
[367746940,1750914638814,-460.0,0.00016992,2]
[367746942,1750914638824,-468.54,0.00016992,2]
[367746943,1750914638834,-471.23883047,0.00016992,2]
[367746944,1750914638844,-468.40724231,0.00016992,2]
[367746945,1750914638855,-462.0243481,0.00016992,2]
[367746946,1750914638865,-467.14685063,0.00016992,2]
[367746947,1750914638874,-461.46845117,0.00016992,2]